fUSD/lending_fUSD_20260203
["ID","MTS","AMOUNT","RATE_DAILY","PERIOD"]
[404423140,1770129047195,-209.40437685,0.00017997,4]
[404423141,1770129047205,-209.40437684,0.00017997,4]
[404423142,1770129047215,-500.0,0.00017997,4]
[404423143,1770129047225,-500.0,0.00017997,4]
[404423144,1770129047235,-217.15233878,0.00017997,4]
[404423145,1770129047245,-500.0,0.00017997,4]
[404423146,1770129047254,-225.18697532,0.00017997,4]
[404423147,1770129047263,-500.0,0.00017997,4]
[404423148,1770129047273,-233.51889341,0.00017997,4]
[404423149,1770129047282,-500.0,0.00017997,4]
[404423150,1770129047296,-242.15909246,0.00017997,4]
[404423151,1770129047306,-500.0,0.00017997,4]
[404423152,1770129047315,-251.11897888,0.00017997,4]
[404423153,1770129047324,-500.0,0.00017997,4]
[404423154,1770129047334,-260.4103811,0.00017997,4]
[404423155,1770129047343,-500.0,0.00017997,4]
[404423156,1770129047353,-270.0455652,0.00017997,4]
[404423157,1770129047363,-500.0,0.00017997,4]
[404423158,1770129047374,-500.0,0.00017997,4]
[404423159,1770129047384,-280.03725112,0.00017997,4]
[404423160,1770129047394,-500.0,0.00017997,4]
[404423161,1770129047404,-290.39862941,0.00017997,4]
[404423162,1770129047414,-500.0,0.00017997,4]
[404423163,1770129047424,-500.0,0.00017997,4]
[404423164,1770129047435,-301.1433787,0.00017997,4]
[404423165,1770129047446,-500.0,0.00017997,4]
[404423166,1770129047455,-500.0,0.00017997,4]
[404423167,1770129047464,-500.0,0.00017997,4]
[404423168,1770129047474,-209.40437684,0.00017997,4]
[404423169,1770129047483,-500.0,0.00017997,4]
[404423170,1770129047492,-500.0,0.00017997,4]
[404423171,1770129047501,-151.0,0.00017997,4]
[404423172,1770129047511,-209.40437685,0.00017997,4]
[404423173,1770129047520,-500.0,0.00017997,4]
[404423174,1770129047529,-642.81998071,0.00017997,4]
[404423175,1770129047538,-500.0,0.00017997,4]
[404423176,1770129047550,-151.0,0.00017997,4]
[404423177,1770129047560,-500.0,0.00017997,4]
[404423178,1770129047569,-151.0,0.00017997,4]
[404423179,1770129047579,-322.6107,0.00017997,4]
[404423180,1770129047638,-500.0,0.00017997,4]
[404423181,1770129047648,-151.0,0.00017997,4]
[404423182,1770129047657,-334.5472959,0.00017997,4]
[404423183,1770129047667,-151.0,0.00017997,4]
[404423184,1770129047676,-346.92554585,0.00017997,4]
[404423185,1770129047685,-151.0,0.00017997,4]
[404423186,1770129047694,-151.0,0.00017997,4]
[404423187,1770129047703,-359.76179104,0.00017997,4]
[404423188,1770129047712,-151.0,0.00017997,4]
[404423189,1770129047721,-373.07297731,0.00017997,4]
[404423190,1770129047731,-151.0,0.00017997,4]
[404423191,1770129047740,-386.87667747,0.00017997,4]
[404423192,1770129047750,-151.0,0.00017997,4]
[404423193,1770129047759,-401.19111454,0.00017997,4]
[404423194,1770129047768,-151.0,0.00017997,4]
[404423195,1770129047777,-416.03518578,0.00017997,4]
[404423196,1770129047787,-431.42848765,0.00017997,4]
[404423197,1770129047800,-447.3913417,0.00017997,4]
[404423198,1770129047810,-463.94482134,0.00017997,4]
[404423199,1770129047819,-481.11077973,0.00017997,4]
[404423200,1770129047828,-498.91187858,0.00017997,4]
[404423201,1770129047838,-517.37161808,0.00017997,4]
[404423202,1770129047847,-536.51436795,0.00017997,4]
[404423203,1770129047856,-556.36539957,0.00017997,4]
[404423204,1770129047865,-427.3188552,0.00017997,4]
[404423205,1770129047875,-209.40437684,0.00017997,4]
[404423206,1770129047885,-217.15233878,0.00017997,4]
[404423207,1770129047894,-225.18697532,0.00017997,4]
[404423208,1770129047903,-233.51889341,0.00017997,4]
[404423209,1770129047913,-242.15909246,0.00017997,4]
[404423210,1770129047923,-251.11897888,0.00017997,4]
[404423211,1770129047932,-260.4103811,0.00017997,4]
[404423212,1770129047942,-270.0455652,0.00017997,4]
[404423213,1770129047951,-280.03725112,0.00017997,4]
[404423214,1770129047961,-290.39862941,0.00017997,4]
[404423215,1770129047971,-301.1433787,0.00017997,4]
[404423216,1770129047980,-151.0,0.00017997,2]
[404423217,1770129047989,-300.0,0.00017999,2]
[404423218,1770129048000,-300.0,0.00017999,2]
[404423219,1770129048013,-300.0,0.00017999,2]
[404423220,1770129048024,-500.0,0.00017999,2]
[404423221,1770129048033,-242.43769509,0.00017999,2]
[404423222,1770129048048,-457.87,0.00017999,20]
[404423223,1770129048057,-457.87,0.00017999,21]
[404423224,1770129048067,-457.87,0.00017999,21]
[404423225,1770129048079,-457.87,0.00017999,21]
[404423226,1770129048091,-457.87,0.00017999,21]
[404423227,1770129048101,-458.03207191,0.00017999,21]
[404423228,1770129048111,-6448330.64804643,0.00018,2]
[404423229,1770129048120,-587.23,0.00018,7]
[404423230,1770129048129,-598912.92845036,0.00018,2]
[404423231,1770129048151,-3336.62340853,0.00018,2]
[404423232,1770129048666,-1223.0,8.423e-05,2]
[404423233,1770129048675,-1842.0,8.44e-05,2]
[404423234,1770129048685,-518.61,0.00013209,2]
[404423235,1770129048694,-173.0,0.00014843,2]
[404423236,1770129048703,-3381.9428857,0.00018,2]
[404423237,1770129048717,-8843.17636971,0.00018,2]
[404423238,1770129048741,-276.0,0.00014872,2]
[404423239,1770129048750,-399883.63727777,0.00018,2]
[404423240,1770129048765,-486.67791843,0.00018,2]
[404423241,1770129048781,-2050.0,0.00018,2]
[404423242,1770129120695,10000.01,7.954e-05,2]
[404423243,1770129120725,10000.01,7.954e-05,2]
[404423244,1770129120754,10000.01,7.954e-05,2]
[404423245,1770129120780,10000.01,7.954e-05,2]
[404423246,1770129120808,10000.01,7.954e-05,2]
[404423247,1770129120834,10000.01,7.954e-05,2]
[404423248,1770129120861,10000.01,7.954e-05,2]
[404423249,1770129120886,10000.01,7.954e-05,2]
[404423250,1770129120914,10000.01,7.954e-05,2]
[404423251,1770129120942,10000.01,7.954e-05,2]
[404423252,1770129131567,-300.0,7.953e-05,2]
[404423253,1770129151350,2806.1669173,7.953e-05,2]
[404423254,1770129163669,172.13738502,7.953e-05,2]
[404423255,1770129163707,173.79327025,7.953e-05,2]
[404423256,1770129163795,900.0,7.7e-05,2]
[404423257,1770129165778,1800.0,7.8e-05,2]
[404423258,1770129167868,2700.0,7.9e-05,2]
[404423259,1770129182090,300.0,7.953e-05,2]
[404423260,1770129182222,150.0,7.953e-05,2]
[404423261,1770129211640,183.0,7.953e-05,2]
[404423262,1770129241906,214.91242743,7.953e-05,2]
[404423263,1770129241930,85.08757257,7.953e-05,2]
[404423264,1770129301854,1200.0,7.953e-05,2]
[404423265,1770129301909,300.0,7.953e-05,2]
[404423266,1770129361955,150.0,7.953e-05,2]
[404423267,1770129361992,300.0,7.953e-05,2]
[404423268,1770129444551,7964.92242743,7.854e-05,2]
[404423269,1770129444583,10000.01,7.854e-05,2]
[404423270,1770129444620,10000.01,7.854e-05,2]
[404423271,1770129444660,10000.01,7.854e-05,2]
[404423272,1770129444700,10000.01,7.854e-05,2]
[404423273,1770129444736,10000.01,7.854e-05,2]
[404423274,1770129444767,10000.01,7.854e-05,2]
[404423275,1770129444800,10000.01,7.854e-05,2]
[404423276,1770129444830,10000.01,7.854e-05,2]
[404423277,1770129444859,5000.01,7.854e-05,2]
[404423278,1770129444889,5000.01,7.854e-05,2]
[404423279,1770129444916,5000.01,7.854e-05,2]
[404423280,1770129444943,5000.01,7.854e-05,2]
[404423281,1770129444971,5000.01,7.854e-05,2]
[404423282,1770129444997,5000.01,7.854e-05,2]
[404423283,1770129445023,5000.01,7.854e-05,2]
[404423284,1770129445053,5000.01,7.854e-05,2]
[404423285,1770129445080,5000.01,7.854e-05,2]
[404423286,1770129449808,-500.01311739,7.854e-05,2]
[404423287,1770129456247,-1373.21172904,7.854e-05,2]
[404423288,1770129457796,-302.0,7.854e-05,2]
[404423289,1770129462021,-302.0,7.854e-05,2]
[404423290,1770129464584,-300.0,7.854e-05,2]
[404423291,1770129470215,-3186.80222157,7.854e-05,2]
[404423292,1770129471632,-748.06556694,7.854e-05,2]
[404423293,1770129481707,300.0,7.853e-05,2]
[404423294,1770129486416,300.0,7.7e-05,2]
[404423295,1770129488564,700.0,7.8e-05,2]
[404423296,1770129490450,151.0,7.851e-05,2]
[404423297,1770129513229,186.38979466,7.853e-05,2]
[404423298,1770129513351,205.05390212,7.853e-05,2]
[404423299,1770129542483,150.0,7.853e-05,2]
[404423300,1770129596105,500.0,0.00010958,5]
[404423301,1770129596340,235.5,0.00010958,6]
[404423302,1770129601771,1200.0,7.853e-05,2]
[404423303,1770129606162,500.0,7.853e-05,2]
[404423304,1770129633639,162.90664692,7.853e-05,2]
[404423305,1770129661681,300.0,7.853e-05,2]
[404423306,1770129669487,500.0,7.853e-05,2]
[404423307,1770129692872,250.816,7.697e-05,2]
[404423308,1770129692959,93.8436563,7.697e-05,2]
[404423309,1770129692980,2542.2573437,7.697e-05,2]
[404423310,1770129717225,472.96179235,7.853e-05,2]
[404423311,1770129722288,150.0,7.853e-05,2]
[404423312,1770129761749,1834.79086395,7.754e-05,2]
[404423313,1770129761773,5000.01,7.754e-05,2]
[404423314,1770129761797,5000.01,7.754e-05,2]
[404423315,1770129761820,5000.01,7.754e-05,2]
[404423316,1770129761843,5000.01,7.754e-05,2]
[404423317,1770129761867,5000.01,7.754e-05,2]
[404423318,1770129761897,10000.01,7.754e-05,2]
[404423319,1770129761926,5000.01,7.754e-05,2]
[404423320,1770129761950,5000.01,7.754e-05,2]
[404423321,1770129761977,10000.01,7.754e-05,2]
[404423322,1770129762003,10000.01,7.754e-05,2]
[404423323,1770129762030,10000.01,7.754e-05,2]
[404423324,1770129762058,10000.01,7.754e-05,2]
[404423325,1770129762085,10000.01,7.754e-05,2]
[404423326,1770129762111,10000.01,7.754e-05,2]
[404423327,1770129762137,10000.01,7.754e-05,2]
[404423328,1770129762162,10000.01,7.754e-05,2]
[404423329,1770129762188,5000.01,7.754e-05,2]
[404423330,1770129762213,5000.01,7.754e-05,2]
[404423331,1770129762512,-2985.85915754,7.754e-05,2]
[404423332,1770129765558,-200.0,7.754e-05,2]
[404423333,1770129767002,-302.0,7.754e-05,2]
[404423334,1770129770358,-728.97051473,7.754e-05,2]
[404423335,1770129772326,-309.42108336,7.754e-05,2]
[404423336,1770129773976,-1797.15415386,7.754e-05,2]
[404423337,1770129776540,-300.0,7.754e-05,2]
[404423338,1770129781824,300.0,7.753e-05,2]
[404423339,1770129794802,200.0,7.7e-05,2]
[404423340,1770129841682,300.0,7.753e-05,2]
[404423341,1770129872847,500.0,7.753e-05,2]
[404423342,1770129872916,500.0,7.753e-05,2]
[404423343,1770129872987,500.0,7.753e-05,2]
[404423344,1770129873063,500.0,7.753e-05,2]
[404423345,1770129873124,500.0,7.753e-05,2]
[404423346,1770129873200,200.0,7.753e-05,2]
[404423347,1770129891857,500.0,7.753e-05,2]
[404423348,1770129892135,200.0,7.753e-05,2]
[404423349,1770129901679,1200.0,7.753e-05,2]
[404423350,1770129902750,150.0,7.753e-05,2]
[404423351,1770129954555,500.0,7.753e-05,2]
[404423352,1770129961676,300.0,7.753e-05,2]
[404423353,1770129973693,4003.10239793,0.00023,120]
[404423354,1770129985911,600.0,7.753e-05,2]
[404423355,1770130017780,500.0,7.753e-05,2]
[404423356,1770130049646,500.0,7.753e-05,2]
[404423357,1770130053557,550.01,7.7e-05,2]
[404423358,1770130053578,549.99,7.7e-05,2]
[404423359,1770130057974,-4122.6247,7.754e-05,2]
[404423360,1770130058020,-2544.7096,7.754e-05,2]
[404423361,1770130081134,500.0,7.753e-05,2]
[404423362,1770130081771,300.0,7.753e-05,2]
[404423363,1770130082113,150.0,7.753e-05,2]
[404423364,1770130097973,151.0,7.751e-05,2]
[404423365,1770130112449,3349.02,7.654e-05,2]
[404423366,1770130112472,5000.01,7.654e-05,2]
[404423367,1770130112493,5000.01,7.654e-05,2]
[404423368,1770130112515,5000.01,7.654e-05,2]
[404423369,1770130112538,5000.01,7.654e-05,2]
[404423370,1770130112562,5000.01,7.654e-05,2]
[404423371,1770130112583,5000.01,7.654e-05,2]
[404423372,1770130112613,5000.01,7.654e-05,2]
[404423373,1770130112635,1018.3165,7.654e-05,2]
[404423374,1770130115643,206.88,7.7e-05,2]
[404423375,1770130123527,200.0,7.7e-05,2]
[404423376,1770130141929,300.0,7.753e-05,2]
[404423377,1770130201725,300.0,7.753e-05,2]
[404423378,1770130201768,1200.0,7.753e-05,2]
[404423379,1770130201806,300.0,7.753e-05,2]
[404423380,1770130201853,300.0,7.753e-05,2]
[404423381,1770130212301,172.0,6.3e-07,2]
[404423383,1770130231370,-90880.49084305,7.754e-05,2]
[404423384,1770130231441,-656.09435565,7.754e-05,2]
[404423385,1770130231457,-434.57723662,7.754e-05,2]
[404423386,1770130231509,-1085.84254698,7.754e-05,2]
[404423387,1770130231520,-1080.50670058,7.754e-05,2]
[404423388,1770130231572,-19496.56012286,7.754e-05,2]
[404423389,1770130231583,-349.17285286,7.754e-05,2]
[404423390,1770130231594,-72267.06084867,7.754e-05,2]
[404423393,1770130233666,300.0,7.7e-05,2]
[404423395,1770130237384,-2594.00113,7.754e-05,2]
[404423396,1770130237395,-77999.99999997,7.754e-05,2]
[404423397,1770130237406,-88580.4388779,7.754e-05,2]
[404423398,1770130237444,-388841.30621847,7.754e-05,2]
[404423400,1770130237456,-612809.89944804,7.754e-05,2]
[404423403,1770130237466,-1159.41324796,7.754e-05,2]
[404423405,1770130237562,-2141764.63557039,7.754e-05,2]
[404423406,1770130237571,-250.0,7.754e-05,2]
[404423407,1770130237581,-1483.9891503,7.754e-05,2]
[404423408,1770130237591,-257.44644732,7.754e-05,2]
[404423409,1770130237600,-2589.94238192,7.754e-05,2]
[404423410,1770130237609,-215.0,7.754e-05,2]
[404423411,1770130237618,-2300.0,7.8e-05,2]
[404423412,1770130237628,-400.0,7.8e-05,2]
[404423413,1770130237638,-600.0,7.8e-05,2]
[404423414,1770130237647,-500.0,7.854e-05,2]
[404423415,1770130237657,-3400.0,7.9e-05,2]
[404423416,1770130237666,-600.0,7.9e-05,2]
[404423417,1770130237678,-12230.872634,7.945e-05,2]
[404423419,1770130237687,-9999.99,7.945e-05,2]
[404423421,1770130237696,-9999.99,7.945e-05,2]
[404423423,1770130237706,-9999.99,7.945e-05,2]
[404423426,1770130237716,-9999.99,7.945e-05,2]
[404423428,1770130237725,-150.99,7.945e-05,2]
[404423429,1770130237735,-9999.99,7.945e-05,2]
[404423431,1770130237744,-299.99,7.945e-05,2]
[404423433,1770130237753,-999.99,7.945e-05,2]
[404423435,1770130237763,-150.99,7.945e-05,2]
[404423437,1770130237772,-11639.09,7.954e-05,2]
[404423439,1770130237785,-4600.0,8e-05,2]
[404423441,1770130237794,-800.0,8e-05,2]
[404423443,1770130237803,-12617.988487,8.178e-05,2]
[404423445,1770130237813,-500.0,8.219e-05,2]
[404423447,1770130237823,-500.0,8.219e-05,2]
[404423449,1770130237832,-217.43772594,8.219e-05,2]
[404423451,1770130237842,-500.0,8.219e-05,2]
[404423453,1770130237851,-500.0,8.219e-05,2]
[404423455,1770130237861,-500.0,8.219e-05,2]
[404423457,1770130237870,-500.0,8.219e-05,2]
[404423459,1770130237879,-500.0,8.219e-05,2]
[404423461,1770130237888,-500.0,8.219e-05,2]
[404423463,1770130237897,-500.0,8.219e-05,2]
[404423465,1770130237906,-500.0,8.219e-05,2]
[404423467,1770130237916,-500.0,8.219e-05,2]
[404423469,1770130237925,-300.0,8.219e-05,2]
[404423471,1770130237935,-627.41495303,8.252e-05,2]
[404423473,1770130237944,-1000.0,8.252e-05,2]
[404423475,1770130237953,-1000.0,8.252e-05,2]
[404423477,1770130237963,-283.0,8.35e-05,2]
[404423479,1770130237972,-421.0,8.366e-05,2]
[404423481,1770130237981,-225.0,8.383e-05,2]
[404423483,1770130237991,-463.0,8.4e-05,2]
[404423485,1770130238000,-432.0,8.416e-05,2]
[404423487,1770130238010,-281.0,8.433e-05,2]
[404423489,1770130238019,-250.0,8.45e-05,2]
[404423491,1770130238031,-37669.19442959,8.454e-05,2]
[404423493,1770130238041,-500.0,8.454e-05,2]
[404423495,1770130238051,-1113.0,8.463e-05,2]
[404423497,1770130238060,-248.0,8.466e-05,2]
[404423499,1770130238070,-590.0,8.48e-05,2]
[404423501,1770130238079,-298.0,8.483e-05,2]
[404423503,1770130238090,-1799.0,8.497e-05,2]
[404423505,1770130238099,-230.0,8.5e-05,2]
[404423507,1770130238109,-1406.0,8.514e-05,2]
[404423509,1770130238119,-255.0,8.528e-05,2]
[404423511,1770130238130,-420.0,8.528e-05,2]
[404423513,1770130238139,-1680.0,8.528e-05,2]
[404423515,1770130238150,-500.0,8.529e-05,2]
[404423517,1770130238159,-500.0,8.529e-05,2]
[404423519,1770130238170,-500.0,8.529e-05,2]
[404423521,1770130238180,-367.18436696,8.529e-05,2]
[404423523,1770130238190,-193.0,8.529e-05,2]
[404423525,1770130238200,-300.0,8.529e-05,2]
[404423527,1770130238211,-300.0,8.529e-05,2]
[404423529,1770130238221,-300.0,8.529e-05,2]
[404423531,1770130238232,-300.0,8.529e-05,2]
[404423533,1770130238242,-360.95256819,8.529e-05,2]
[404423535,1770130238251,-250.0,8.529e-05,2]
[404423537,1770130238261,-706.0,8.53e-05,2]
[404423539,1770130238271,-151.74,8.564e-05,2]
[404423541,1770130238283,-8671.74,8.568e-05,2]
[404423543,1770130238292,-500.0,8.668e-05,2]
[404423545,1770130238302,-20293.34,8.712e-05,2]
[404423547,1770130238312,-500.0,8.728e-05,2]
[404423549,1770130238321,-1195.29,8.749e-05,2]
[404423551,1770130238332,-500.0,8.805e-05,2]
[404423553,1770130238342,-500.0,9.002e-05,2]
[404423555,1770130238352,-1195.29,9.023e-05,2]
[404423557,1770130238361,-1830.15,9.1e-05,2]
[404423559,1770130238370,-166.51015303,9.133e-05,2]
[404423561,1770130238380,-500.0,9.133e-05,2]
[404423563,1770130238389,-562.28195765,9.133e-05,2]
[404423565,1770130238400,-500.0,9.133e-05,2]
[404423567,1770130238411,-500.0,9.133e-05,2]
[404423569,1770130238423,-500.0,9.133e-05,2]
[404423571,1770130238433,-500.0,9.133e-05,2]
[404423573,1770130238443,-500.55069623,9.133e-05,2]
[404423574,1770130238452,-500.0,9.133e-05,2]
[404423576,1770130238463,-500.0,9.133e-05,2]
[404423578,1770130238472,-500.0,9.133e-05,2]
[404423579,1770130238481,-417.0,9.23e-05,2]
[404423580,1770130238491,-500.0,9.276e-05,2]
[404423581,1770130238501,-1195.29,9.297e-05,2]
[404423582,1770130238510,-200.0,9.304e-05,2]
[404423583,1770130238519,-433.0,9.381e-05,2]
[404423584,1770130238531,-587.0,9.381e-05,2]
[404423585,1770130238541,-2351.0,9.381e-05,2]
[404423586,1770130238550,-166.7,9.402e-05,2]
[404423587,1770130238560,-500.0,9.55e-05,2]
[404423588,1770130238570,-1195.29,9.571e-05,2]
[404423589,1770130238579,-500.0,9.681e-05,2]
[404423590,1770130238588,-500.0,9.824e-05,2]
[404423591,1770130238598,-1195.29,9.845e-05,2]
[404423592,1770130238607,-250.09740981,0.0001,2]
[404423593,1770130238616,-200.0,0.0001,2]
[404423594,1770130238626,-151.0,0.0001,2]
[404423595,1770130238635,-151.0,0.0001,2]
[404423596,1770130238646,-151.0,0.0001,2]
[404423597,1770130238655,-500.0,0.0001,2]
[404423598,1770130238664,-151.0,0.0001,2]
[404423599,1770130238674,-151.0,0.0001,2]
[404423600,1770130238683,-151.0,0.0001,2]
[404423601,1770130238692,-151.0,0.0001,2]
[404423602,1770130238702,-151.0,0.0001,2]
[404423603,1770130238711,-151.0,0.0001,2]
[404423604,1770130238721,-151.0,0.0001,2]
[404423605,1770130238730,-151.0,0.0001,2]
[404423606,1770130238740,-151.0,0.0001,2]
[404423607,1770130238749,-151.0,0.0001,2]
[404423608,1770130238759,-151.0,0.0001,2]
[404423609,1770130238768,-151.0,0.0001,2]
[404423610,1770130238778,-151.0,0.0001,2]
[404423611,1770130238788,-151.0,0.0001,2]
[404423612,1770130238797,-151.0,0.0001,2]
[404423613,1770130238807,-151.0,0.0001,2]
[404423614,1770130238816,-151.0,0.0001,2]
[404423615,1770130238825,-151.0,0.0001,2]
[404423616,1770130238834,-151.0,0.0001,2]
[404423617,1770130238843,-151.0,0.0001,2]
[404423618,1770130238853,-151.0,0.0001,2]
[404423619,1770130238862,-151.0,0.0001,2]
[404423620,1770130238871,-151.0,0.0001,2]
[404423621,1770130238880,-151.0,0.0001,2]
[404423622,1770130238889,-151.0,0.0001,2]
[404423623,1770130238898,-151.0,0.0001,2]
[404423624,1770130238908,-151.0,0.0001,2]
[404423625,1770130238917,-151.0,0.0001,2]
[404423626,1770130238927,-200.0,0.0001,2]
[404423627,1770130238936,-176.08748064,0.0001,2]
[404423628,1770130238945,-500.0,0.0001,2]
[404423629,1770130238954,-500.0,0.0001,2]
[404423630,1770130238964,-500.0,0.0001,2]
[404423631,1770130238973,-500.0,0.0001,2]
[404423632,1770130238982,-500.0,0.0001,2]
[404423633,1770130238991,-500.0,0.0001,2]
[404423634,1770130239001,-500.0,0.0001,2]
[404423635,1770130239010,-500.0,0.0001,2]
[404423636,1770130239019,-500.0,0.0001,2]
[404423637,1770130239030,-500.0,0.0001,2]
[404423638,1770130239040,-500.0,0.0001,2]
[404423639,1770130239049,-164.01557148,0.0001,2]
[404423640,1770130239058,-164.01557148,0.0001,2]
[404423641,1770130239068,-500.0,0.0001,2]
[404423642,1770130239077,-500.0,0.0001,2]
[404423643,1770130239087,-500.0,0.0001,2]
[404423644,1770130239096,-500.0,0.0001,2]
[404423645,1770130239106,-500.0,0.0001,2]
[404423646,1770130239115,-500.0,0.0001,2]
[404423647,1770130239125,-500.0,0.0001,2]
[404423648,1770130239134,-500.0,0.0001,2]
[404423649,1770130239144,-500.0,0.0001,2]
[404423650,1770130239153,-500.0,0.0001,2]
[404423651,1770130239163,-500.0,0.0001,2]
[404423652,1770130239173,-179.394524,0.0001,2]
[404423653,1770130239182,-824.69144558,0.0001,2]
[404423654,1770130239192,-824.69144558,0.0001,2]
[404423655,1770130239202,-1195.29,0.00010119,2]
[404423656,1770130239212,-250.0,0.00010246,2]
[404423657,1770130239221,-736.0,0.00010319,2]
[404423658,1770130239231,-823.0,0.00010319,2]
[404423659,1770130239240,-3292.0,0.00010319,2]
[404423660,1770130239250,-1195.29,0.00010393,2]
[404423661,1770130239259,-200.0,0.00010548,2]
[404423662,1770130239268,-500.0,0.00010548,2]
[404423663,1770130239279,-200.0,0.00010548,2]
[404423664,1770130239289,-1195.29,0.00010667,2]
[404423667,1770130239522,-5800.0,0.000109,3]
[404423668,1770130239534,-1000.0,0.000109,3]
[404423669,1770130239543,-3069.31848684,0.000109,2]
[404423670,1770130239552,-3069.31848682,0.000109,2]
[404423671,1770130239561,-3069.31848682,0.000109,2]
[404423672,1770130239570,-1195.29,0.00010941,2]
[404423673,1770130239579,-500.0,0.00010958,2]
[404423674,1770130239588,-500.0,0.00010958,3]
[404423675,1770130239597,-500.0,0.00010958,4]
[404423676,1770130239606,-150.0,0.00010959,2]
[404423677,1770130239615,-150.0,0.00010959,2]
[404423678,1770130239624,-200.0,0.00011096,2]
[404423679,1770130239634,-500.0,0.00011096,2]
[404423680,1770130239643,-200.0,0.00011096,2]
[404423681,1770130239652,-7934.45813047,0.00011099,2]
[404423682,1770130239661,-7934.45813047,0.00011099,2]
[404423683,1770130239670,-7934.45813047,0.00011099,2]
[404423684,1770130239679,-7934.45813047,0.00011099,2]
[404423685,1770130239688,-1195.29,0.00011215,2]
[404423686,1770130239698,-500.0,0.00011233,2]
[404423687,1770130239707,-484.03,0.000113,2]
[404423688,1770130239716,-1252.0,0.0001135,2]
[404423689,1770130239725,-1152.0,0.00011351,2]
[404423690,1770130239741,-4609.0,0.00011351,2]
[404423691,1770130239751,-1195.29,0.00011489,2]
[404423692,1770130239761,-200.0,0.00011644,2]
[404423693,1770130239769,-507.65857495,0.00011644,2]
[404423694,1770130239781,-200.0,0.00011644,2]
[404423695,1770130239790,-1195.29,0.00011763,2]
[404423696,1770130239799,-1195.29,0.00012037,2]
[404423697,1770130239808,-3069.31848682,0.00012045,2]
[404423698,1770130239818,-200.0,0.00012192,2]
[404423699,1770130239827,-200.0,0.00012192,2]
[404423700,1770130239836,-7934.45813047,0.00012208,2]
[404423701,1770130239846,-1195.29,0.00012311,2]
[404423702,1770130239855,-3260.26193254,0.00012472,2]
[404423703,1770130239864,-8603.88282235,0.00012472,2]
[404423705,1770130239872,-15178.26914943,0.00012472,2]
[404423706,1770130239881,-1613.0,0.00012486,2]
[404423707,1770130239890,-6453.0,0.00012486,2]
[404423708,1770130239899,-1195.29,0.00012585,2]
[404423709,1770130239908,-2589.9423819,0.00012777,2]
[404423710,1770130239917,-179.39452399,0.00012777,2]
[404423711,1770130239926,-1195.29,0.00012859,2]
[404423712,1770130239935,-500.0,0.00012932,2]
[404423713,1770130239944,-1195.29,0.00013133,2]
[404423714,1770130239954,-1042.0,0.00013242,2]
[404423715,1770130239962,-500.0,0.00013342,2]
[404423716,1770130239971,-7934.45813047,0.00013346,2]
[404423717,1770130239980,-1195.29,0.00013407,2]
[404423718,1770130239990,-151.0,0.00013481,2]
[404423719,1770130239999,-3069.31848682,0.00013509,2]
[404423720,1770130240008,-159.0,0.00013631,2]
[404423722,1770130240017,-151.0,0.00013631,2]
[404423723,1770130240027,-151.0,0.00013631,2]
[404423724,1770130240035,-1195.29,0.00013681,2]
[404423725,1770130240044,-500.0,0.00013698,2]
[404423726,1770130240055,-189.27951938,0.00013698,2]
[404423727,1770130240064,-500.0,0.00013698,2]
[404423728,1770130240073,-500.0,0.00013698,2]
[404423730,1770130240083,-500.0,0.00013698,2]
[404423732,1770130240092,-438.97921379,0.00013698,2]
[404423733,1770130240101,-500.0,0.00013698,2]